fUST/lending_fUST_20240516
["ID","MTS","AMOUNT","RATE_DAILY","PERIOD"]
[327111394,1715821832855,-12703.0,0.00020909,2]
[327111395,1715821832865,-345.78852896,0.00020909,2]
[327111396,1715821832875,-500.0,0.00020909,2]
[327111397,1715821832885,-500.0,0.00020909,2]
[327111398,1715821832896,-500.0,0.00020909,2]
[327111399,1715821832906,-448.29013587,0.00020909,2]
[327111400,1715821832916,-500.0,0.00020909,2]
[327111401,1715821832927,-500.0,0.00020909,2]
[327111402,1715821832937,-500.0,0.00020909,2]
[327111403,1715821832947,-201.89149185,0.00020909,2]
[327111404,1715821832956,-500.0,0.00020909,2]
[327111405,1715821832967,-500.0,0.00020909,2]
[327111406,1715821832980,-7962.61734382,0.0002091,2]
[327111407,1715821832995,-19147.11439117,0.0002091,2]
[327111551,1715821846124,-500.0,0.00020909,2]
[327111553,1715821846134,-500.0,0.00020909,2]
[327111556,1715821846143,-500.0,0.00020909,2]
[327111560,1715821846284,-500.0,0.00020909,2]
[327111561,1715821846296,-435.35579892,0.00020909,2]
[327111562,1715821846307,-402.08896933,0.00020909,2]
[327111563,1715821846317,-812.40101552,0.00020911,2]
[327111564,1715821846327,-302.12545264,0.00020911,2]
[327111565,1715821846336,-304.90073063,0.00020911,2]
[327111566,1715821846346,-273.34503605,0.00020912,2]
[327111567,1715821846355,-6359.06599921,0.00020912,2]
[327111568,1715821846364,-1236.80017075,0.00021,2]
[327111569,1715821846374,-204.2613691,0.00021,2]
[327111570,1715821846384,-157.23496558,0.00021259,2]
[327111571,1715821846393,-152.0,0.00021265,2]
[327111572,1715821846402,-3000.0,0.000215,2]
[327111573,1715821846413,-3000.0,0.0002151,2]
[327111574,1715821846423,-83.34073163,0.0002152,2]
[327111577,1715821913372,150.0,0.000189,2]
[327111582,1715822730163,-272.31393735,0.0001882,2]
[327111583,1715822730187,-150.0,0.000189,2]
[327111584,1715822730208,-150.0,0.00019378,2]
[327111585,1715822730228,-150.0,0.00019609,2]
[327111586,1715822730250,-106.3695313,0.0001984,2]
[327111587,1715822831086,-43.6304687,0.0001984,2]
[327111588,1715822831111,-353.73434075,0.0002,2]
[327111589,1715822831132,-24.26233528,0.00020879,2]
[327111590,1715822836112,-767.579748,0.00020879,2]
[327112375,1715823938100,-150.0,0.00019232,2]
[327112376,1715823938121,-180.624327,0.00019876,2]
[327112377,1715823938141,-353.76213557,0.00020629,2]
[327112378,1715823938163,-104.27110131,0.0002063,2]
[327112380,1715824028679,-177.837259,0.00019469,2]
[327112381,1715824028700,-174.1125054,0.0001955,2]
[327112382,1715824028720,-109.03424634,0.00019678,2]
[327112383,1715824029067,-71.59008066,0.00019678,2]
[327112384,1715824029089,-194.68027738,0.0002,2]
[327112385,1715824051116,-159.08185819,0.0002,2]
[327112386,1715824051137,-67.7495614,0.0002063,2]
[327112387,1715824051157,-474.89694834,0.0002063,2]
[327112440,1715824232669,-576.58072311,0.00020614,3]
[327112458,1715824236203,150.0,0.00019371,2]
[327112494,1715824238621,-1998.73923,0.00020614,3]
[327112832,1715825149113,-181.62,0.00018548,2]
[327112833,1715825149133,-165.5548002,0.00018549,2]
[327112834,1715825149152,-479.35914792,0.0002,2]
[327112835,1715825226104,-154.81422293,0.00019999,2]
[327112836,1715825226124,-577.16085208,0.0002,2]
[327112837,1715825226146,-209.02417099,0.0002009,2]
[327112838,1715825233125,-150.0,0.000189,2]
[327112839,1715825233147,-20.852222,0.0002,2]
[327112840,1715825236184,-260.37672394,0.0002,2]
[327112841,1715825426864,150.0,0.00019673,2]
[327112842,1715825426904,4.79876161,0.00019449,2]
[327112843,1715825426927,145.20123839,0.00019449,2]
[327112886,1715825433758,-154.81422293,0.00020086,2]
[327112903,1715825433913,-353.76213557,0.00020087,2]
[327112905,1715825433923,-3561.67500329,0.0002009,2]
[327112907,1715825433932,-1100.75106244,0.0002009,2]
[327112909,1715825433941,-7226.52023248,0.00020283,3]
[327112911,1715825433950,-12703.0,0.00020283,2]
[327112913,1715825433960,-363.70145987,0.00020346,2]
[327112915,1715825433969,-500.0,0.00020346,2]
[327112917,1715825433979,-500.0,0.00020346,2]
[327112919,1715825433988,-500.0,0.00020346,2]
[327112921,1715825433997,-500.0,0.00020346,2]
[327112923,1715825434006,-500.0,0.00020349,2]
[327112925,1715825434016,-34410.18366487,0.0002035,2]
[327112927,1715825434028,-1321.88224772,0.0002035,2]
[327112930,1715825434039,-635.79487883,0.0002035,2]
[327113282,1715825439278,-436.47309079,0.00020349,2]
[327113283,1715825439288,-563.17730921,0.0002035,2]
[327113999,1715825531678,78.67712406,0.000189,2]
[327114000,1715825531699,71.32287594,0.000189,2]
[327114006,1715825879537,242.0,0.000265,120]
[327114007,1715826082570,154.81422293,9.999e-05,2]
[327114008,1715826344139,-154.81422293,0.00018306,2]
[327114009,1715826344159,-272.31393735,0.00018307,2]
[327114010,1715826344179,-150.0,0.000189,2]
[327114011,1715826344199,-182.087703,0.00019178,2]
[327114012,1715826344219,-177.837259,0.00019178,2]
[327114013,1715826344240,-27.31539432,0.0001948,2]
[327114014,1715826434101,-122.68460568,0.0001948,2]
[327114015,1715826434122,-150.0,0.00019702,2]
[327114016,1715826434143,-148.94253905,0.00020123,2]
[327114017,1715826441330,-204.81959652,0.00020123,2]
[327114018,1715826441368,-132.06686809,0.00020167,2]
[327114019,1715826453388,-284.8093492,0.00020167,2]
[327114020,1715826453407,-633.7703988,0.00020209,2]
[327114026,1715826626035,150.0,0.00019486,2]
[327114027,1715826626087,48.6000127,0.00019707,2]
[327114028,1715826626120,101.3999873,0.00019707,2]
[327114073,1715826632533,-150.0,0.00019928,2]
[327114074,1715826632543,-353.76213557,0.00020022,2]
[327114075,1715826632552,-12703.0,0.00020023,2]
[327114076,1715826632562,-4220.67206101,0.00020024,2]
[327114077,1715826632572,-10099.78822683,0.0002003,2]
[327114078,1715826632581,-1100.75106244,0.00020209,2]
[327114079,1715826632591,-223.68972802,0.00020239,2]
[327114080,1715826632599,-223.68972802,0.00020242,2]
[327114081,1715826632609,-157.2349656,0.00020244,2]
[327114082,1715826632617,-223.68972802,0.00020244,2]
[327114083,1715826632627,-500.0,0.00020338,2]
[327114084,1715826632637,-500.0,0.00020338,2]
[327114085,1715826632647,-500.0,0.00020338,2]
[327114086,1715826632657,-500.0,0.00020338,2]
[327114087,1715826632666,-1600.67,0.00020338,2]
[327114088,1715826632675,-500.0,0.00020338,2]
[327114089,1715826632685,-3613.26011624,0.00020339,3]
[327114090,1715826632694,-350.83934875,0.00020339,2]
[327114091,1715826632703,-160.91882827,0.00020339,2]
[327114092,1715826632712,-208.12310828,0.0002034,2]
[327114093,1715826632723,-500.0,0.0002034,2]
[327114094,1715826632732,-943.07,0.0002034,2]
[327114095,1715826632743,-500.0,0.0002034,2]
[327114096,1715826632754,-3880.71,0.0002034,2]
[327114097,1715826632763,-500.0,0.0002034,2]
[327114098,1715826632772,-268.20428634,0.00020341,2]
[327114099,1715826632782,-7997.38523877,0.00020342,2]
[327114100,1715826632793,-151.0,0.00020342,2]
[327114101,1715826632803,-151.0,0.00020342,2]
[327114102,1715826632812,-151.0,0.00020342,2]
[327114103,1715826632822,-151.0,0.00020342,2]
[327114104,1715826632831,-151.0,0.00020342,2]
[327114105,1715826632842,-206.223192,0.00020342,2]
[327114106,1715826632851,-206.223192,0.00020342,2]
[327114107,1715826632862,-151.0,0.00020342,2]
[327114108,1715826632872,-151.0,0.00020342,2]
[327114109,1715826632882,-151.0,0.00020342,2]
[327114110,1715826632893,-151.0,0.00020342,2]
[327114111,1715826632902,-8044.11568528,0.00020344,3]
[327114112,1715826632911,-434.77518199,0.00020344,2]
[327114113,1715826632921,-500.38457858,0.00020344,2]
[327114114,1715826632931,-250.22007852,0.00020344,2]
[327114115,1715826632940,-2919.79,0.00020344,2]
[327114116,1715826632950,-921.69,0.00020344,2]
[327114117,1715826632959,-500.0,0.00020344,2]
[327114118,1715826632968,-566.08,0.00020344,2]
[327114119,1715826632977,-500.0,0.00020344,2]
[327114120,1715826632986,-783.35,0.00020344,2]
[327114121,1715826632995,-783.35,0.00020344,2]
[327114122,1715826633004,-783.35,0.00020344,2]
[327114123,1715826633014,-500.0,0.00020344,2]
[327114124,1715826633023,-500.0,0.00020344,2]
[327114125,1715826633032,-500.0,0.00020344,2]
[327114126,1715826633041,-632.93,0.00020344,2]
[327114127,1715826633050,-532.29195546,0.00020344,2]
[327114128,1715826633059,-2422.61,0.00020344,2]
[327114129,1715826633068,-151.0,0.00020344,2]
[327114130,1715826633078,-286.144497,0.00020344,2]
[327114131,1715826633088,-535.22,0.00020344,2]
[327114132,1715826633097,-500.0,0.00020344,2]
[327114133,1715826633106,-1742.15,0.00020344,2]
[327114134,1715826633116,-822.22,0.00020344,2]
[327114135,1715826633125,-500.0,0.00020344,2]
[327114136,1715826633135,-500.0,0.00020344,2]
[327114137,1715826633145,-912.97,0.00020344,2]
[327114138,1715826633155,-503.39211114,0.00020344,2]
[327114139,1715826633164,-500.0,0.00020344,2]
[327114140,1715826633174,-3577.85,0.00020344,2]
[327114141,1715826633184,-982.32,0.00020344,2]
[327114142,1715826633193,-962.3,0.00020344,2]
[327114143,1715826633203,-151.0,0.00020344,2]
[327114144,1715826633213,-255.816182,0.00020344,2]
[327114145,1715826633224,-500.0,0.00020344,2]
[327114146,1715826633233,-500.0,0.00020344,2]
[327114147,1715826633244,-500.0,0.00020344,2]
[327114148,1715826633254,-837.26,0.00020344,2]
[327114149,1715826633265,-1269.33,0.00020344,2]
[327114150,1715826633275,-7259.83,0.00020344,2]
[327114151,1715826633284,-6263.41,0.00020344,2]
[327114152,1715826633294,-500.0,0.00020344,2]
[327114153,1715826633303,-4093.02,0.00020344,2]
[327114154,1715826633313,-1324.34,0.00020344,2]
[327114155,1715826633323,-3653.1,0.00020344,2]
[327114156,1715826633332,-151.0,0.00020344,2]
[327114157,1715826633342,-19294.1,0.00020344,2]
[327114158,1715826633351,-151.0,0.00020344,2]
[327114159,1715826633361,-151.0,0.00020344,2]
[327114160,1715826633370,-151.0,0.00020344,2]
[327114161,1715826633380,-151.0,0.00020344,2]
[327114162,1715826633391,-163.720156,0.00020344,2]
[327114163,1715826633401,-500.0,0.00020344,2]
[327114164,1715826633410,-912.11,0.00020344,2]
[327114165,1715826633420,-500.0,0.00020344,2]
[327114166,1715826633429,-3649.83,0.00020344,2]
[327114167,1715826633439,-500.0,0.00020344,2]
[327114168,1715826633448,-500.0,0.00020344,2]
[327114169,1715826633460,-151.0,0.00020344,2]
[327114170,1715826633469,-151.0,0.00020344,2]
[327114171,1715826633479,-151.0,0.00020344,2]
[327114172,1715826633488,-151.0,0.00020344,2]
[327114173,1715826633497,-151.0,0.00020344,2]
[327114174,1715826633507,-210.274784,0.00020344,2]
[327114175,1715826633516,-500.0,0.00020344,2]
[327114176,1715826633526,-500.0,0.00020344,2]
[327114177,1715826633535,-530.42059546,0.00020344,2]
[327114178,1715826633545,-673.75,0.00020344,2]
[327114179,1715826633555,-1076.27,0.00020344,2]
[327114180,1715826633565,-500.0,0.00020344,2]
[327114181,1715826633575,-500.0,0.00020344,2]
[327114182,1715826633585,-926.69,0.00020344,2]
[327114183,1715826633594,-500.0,0.00020344,2]
[327114184,1715826633604,-1744.43,0.00020344,2]
[327114185,1715826633613,-1320.75192872,0.00020344,2]
[327114210,1715826638373,-4109.16328342,0.00020029,2]
[327114239,1715826640507,-304.71368244,0.00020029,2]
[327114241,1715826640519,-1000.0,0.00020029,2]
[327114243,1715826640531,-522.13279653,0.00020029,2]
[327114295,1715826643566,-1204.18212563,0.00020029,2]
[327114326,1715826737356,80.99492414,0.000189,2]
[327114327,1715826806623,9906.51099386,9.999e-05,2]
[327114328,1715826867493,-176.0,0.0002034,3]
[327114329,1715826879944,-176.0,0.00020338,3]
[327114330,1715826895424,-1630.63005812,0.00020338,3]
[327114331,1715826895454,-3846.05784264,0.0002034,3]
[327114332,1715826895504,-1401.43,0.00020347,4]
[327114333,1715826895559,-1401.43,0.00020621,4]
[327114334,1715826895609,-1401.43,0.00020895,4]
[327114335,1715826932521,903.31502906,0.00020338,3]
[327114336,1715826934859,2011.02892132,0.00020338,3]
[327114337,1715826969707,266.24747653,0.00021,3]
[327114338,1715826990831,451.65751453,0.00020338,3]
[327114339,1715827008784,154.81422293,9.999e-05,2]
[327114340,1715827015823,1092.17601236,0.00021,5]
[327114341,1715827037400,3161.46261812,0.00021,7]
[327114342,1715827048452,225.82875726,0.00020338,3]
[327114343,1715827051146,1005.51446066,0.00020338,3]
[327114344,1715827052275,1237.06001274,0.00021,3]
[327114345,1715827108547,225.82875726,0.00020338,3]
[327114346,1715827174715,502.75723033,0.00020338,3]
[327114347,1715827261992,3000.0,0.0002,3]
[327114349,1715827285746,3000.0,0.0002,3]
[327114350,1715827294943,251.37861516,0.00020336,3]
[327114351,1715827296583,3000.0,0.0002,3]
[327114352,1715827327724,3000.0,0.00021,3]
[327114353,1715827361205,3000.0,0.00021,3]
[327114354,1715827411277,251.37861515,0.00020235,3]
[327114355,1715827414182,3000.0,0.00021,3]
[327114356,1715827434791,3000.0,0.00021,3]
[327114357,1715827465294,3000.0,0.00021,3]
[327114358,1715827477946,2585.986688,0.00021,3]
[327114359,1715827526275,1237.06001274,0.00021,3]
[327114360,1715827559107,-150.0,0.000189,2]
[327114361,1715827559127,-184.1125054,0.00018977,2]
[327114362,1715827559146,-198.6300311,0.00019152,2]
[327114363,1715827559166,-318.23877736,0.000199,2]
[327114364,1715827559185,-91.14734529,0.00019999,2]
[327114365,1715827626151,-460.98401074,0.00019999,2]
[327114366,1715827636111,-852.72836793,0.00019999,2]
[327114367,1715827646153,-177.374929,0.00019178,2]
[327114368,1715827646175,-297.93722068,0.00019999,2]
[327114376,1715827758679,1226.25,0.00020338,4]
[327114377,1715827758969,1226.25,0.00020612,4]
[327114378,1715827759248,1226.25,0.00020886,4]
[327114385,1715827825610,150.0,0.00019513,2]
[327114386,1715827830340,1102.25,0.00020338,7]
[327114387,1715827830751,1102.25,0.00020338,12]
[327114388,1715827830857,1102.25,0.00020339,17]
[327114389,1715827831128,1102.25,0.00020343,22]
[327114390,1715827831433,1102.25,0.00020343,27]
[327114391,1715827831724,1102.25,0.00020343,32]
[327114397,1715827831966,1102.25,0.00020343,37]
[327114411,1715827832231,1102.25,0.00020343,42]
[327114412,1715827832506,1102.25,0.00020345,47]
[327114413,1715827832829,1102.25,0.00020346,52]
[327114414,1715827833113,1102.25,0.00020346,57]
[327114415,1715827833375,1102.25,0.00020346,62]
[327114416,1715827833659,1102.25,0.00020346,67]
[327114417,1715827833920,1102.25,0.00020347,72]
[327114418,1715827834204,1102.25,0.00020348,77]
[327114419,1715827834475,1102.25,0.00020348,82]
[327114420,1715827834738,1102.25,0.00020348,87]
[327114421,1715827835000,1102.25,0.00020348,92]
[327114422,1715827835331,1102.25,0.00020444,97]
[327114423,1715827835587,1102.25,0.00020444,97]
[327114424,1715827835853,1102.25,0.00020444,97]
[327114425,1715827836080,9.2224157,0.00019513,2]
[327114426,1715827836106,140.7775843,0.00019513,2]
[327114427,1715827836634,1102.25,0.00020444,97]
[327114428,1715827836780,1102.3537892,0.00020444,97]
[327114589,1715827915809,63.4209906,0.00018987,2]
[327114590,1715827915830,117.2033364,0.00018987,2]
[327114591,1715827943970,300.0,0.00021,3]
[327114592,1715828140518,2113.87907717,9.999e-05,2]
[327114593,1715828240674,536.18181507,9.999e-05,2]
[327114594,1715828329212,583.44842813,0.00017005,2]
[327114595,1715828498423,180.624327,0.00017897,2]
[327114596,1715828523056,385.941669,0.00017897,2]
[327114597,1715828605216,165.5548002,0.00017005,2]
[327114599,1715828649024,365.68160133,0.00017897,2]
[327114600,1715828652036,1072.97,0.00020105,4]
[327114601,1715828652330,1072.97,0.00020379,4]
[327114602,1715828652622,1072.97,0.00020653,4]
[327114603,1715828653025,1072.97,0.00020927,4]
[327114604,1715828665064,234.2357493,0.00017005,2]
[327114605,1715828680975,369.12710253,0.00017005,2]
[327114606,1715828681081,234.2357493,0.00017005,2]
[327114607,1715828699012,234.2357493,0.00017005,2]
[327114608,1715828717041,234.2357493,0.00017005,2]
[327114609,1715828730448,-164.62781415,0.00018797,2]
[327114610,1715828730468,-278.45893019,0.00018797,2]
[327114611,1715828730487,-263.5807749,0.00018894,2]
[327114612,1715828730507,-181.62,0.00018894,2]
[327114613,1715828730531,-85.70589998,0.00018894,2]
[327114614,1715828735126,234.2357493,0.00017005,2]
[327114615,1715828753051,234.2357493,0.00017005,2]
[327114616,1715828775132,234.2357493,0.00017005,2]
[327114617,1715828775277,602.25,0.00020105,7]
[327114618,1715828797012,234.2357493,0.00017005,2]
[327114619,1715828821018,234.2357493,0.00017005,2]
[327114620,1715828827132,-156.25142505,0.00018793,2]
[327114621,1715828827155,-935.74782095,0.00018891,2]
[327114622,1715828839059,234.2357493,0.00017005,2]
[327114623,1715828844089,-170.852222,0.0001889,2]
[327114624,1715828845112,-293.17338754,0.0001889,2]
[327114625,1715828853187,-162.47070965,0.0001889,2]
[327114626,1715828861052,234.2357493,0.00017005,2]
[327114627,1715828879062,234.2357493,0.00017005,2]
[327114628,1715828929783,234.2357493,0.00017005,2]
[327114629,1715828949542,151.0,0.00017005,2]
[327114630,1715828949567,83.2357493,0.00017005,2]
[327114631,1715828952188,-20239.26546952,0.00018887,2]
[327114632,1715828952213,-1891.26643955,0.00018888,2]
[327114633,1715828952239,-34370.41568267,0.00018888,2]
[327114634,1715828954094,-762.7841073,0.00018888,2]
[327114635,1715828968112,-243.65156389,0.00018791,2]
[327114636,1715828968132,-15591.31545949,0.00018887,2]
[327114637,1715828971544,234.2357493,0.00017005,2]
[327114641,1715829024857,188.6353617,0.00017895,2]
[327114654,1715829034098,-169.60466235,0.000188,2]
[327114655,1715829034109,-3768.93299956,0.00018887,2]
[327114656,1715829034119,-234.2357493,0.00018887,2]
[327114657,1715829034131,-4678.28897906,0.00018891,2]
[327114658,1715829034141,-1087.44431628,0.00018895,2]
[327114659,1715829034151,-2686.58916013,0.00018896,2]
[327114660,1715829034162,-327.64942245,0.00018897,2]
[327114661,1715829034171,-130336.56078312,0.00018898,2]
[327114662,1715829034181,-37882.19003424,0.00018899,2]
[327114704,1715829038762,-1997.47103997,0.00018899,2]
[327114744,1715829041161,155.09128386,0.000249,60]
[327114779,1715829047558,234.2357493,0.00017005,2]
[327114788,1715829048602,-3709.13819359,0.00018896,2]
[327114789,1715829063608,234.2357493,0.00017005,2]
[327114790,1715829085553,279.64421514,0.00017005,2]
[327114795,1715829135775,733.50834063,0.00017949,2]
[327114798,1715829201841,370.82451489,9.999e-05,2]
[327114799,1715829254337,283.5045588,0.000137,2]
[327114802,1715829505143,1071.1736676,0.00017896,2]
[327114804,1715829539261,1442.0759156,0.00017896,2]
[327114805,1715829567975,894.14,0.00019178,4]
[327114806,1715829568256,894.14,0.00019452,4]
[327114807,1715829568510,894.14,0.00019726,4]
[327114808,1715829568791,894.14,0.0002,4]
[327114809,1715829569087,894.14,0.00020273,4]
[327114810,1715829569364,894.14,0.00020547,4]
[327114811,1715829569619,894.14,0.00020821,4]
[327114812,1715829761088,-2364.100484,0.00018661,2]
[327114813,1715829799469,272.31393735,0.00017005,2]
[327114814,1715829912309,283.5045588,0.000137,2]
[327114815,1715829940130,-416.87621729,0.00018468,2]
[327114816,1715829940152,-169.60466235,0.00018799,2]
[327114817,1715829940174,-319.61470942,0.00018799,2]
[327114818,1715829940196,-195.13541781,0.00018894,2]
[327114819,1715830036160,-408.20934055,0.00018894,2]
[327114820,1715830038132,-118.435375,0.00018894,2]
[327114821,1715830038151,-105.44298745,0.00018894,2]
[327114822,1715830046781,179.4818609,0.00017911,2]
[327114823,1715830049089,-421.62714473,0.00018894,2]
[327114824,1715830049685,753.2995976,0.00017911,2]
[327114825,1715830050110,-2.85039319,0.00018894,2]
[327114826,1715830050132,-151.94836842,0.00018894,2]
[327114827,1715830079198,5000.0,0.00025,60]
[327114831,1715830148132,-279.66287076,0.00018799,2]
[327114832,1715830216458,247.94022079,0.00018439,2]
[327114833,1715830223342,564.0,0.00025,60]
[327114845,1715830234455,-101.3999873,0.00018439,2]
[327114846,1715830234467,-3871.33185292,0.00018439,2]
[327114847,1715830234477,-157.68007744,0.00018894,2]
[327114848,1715830234487,-420.82889366,0.00018894,2]
[327114849,1715830234496,-384.22515753,0.00018895,2]
[327114850,1715830234506,-9564.6583934,0.00018895,2]
[327114851,1715830234516,-500.0,0.00018895,2]
[327114852,1715830234528,-49003.07489928,0.00018896,2]
[327114853,1715830234544,-536.7228249,0.00018896,2]
[327114858,1715830234611,-198.6000127,0.00018896,2]
[327114987,1715830239217,-3011.3,0.00018896,2]
[327114994,1715830239314,-8133.484725,0.00018896,2]
[327114996,1715830239326,-20803.98577981,0.00018896,2]
[327114998,1715830239338,-1139.66747009,0.00018896,2]
[327115056,1715830241392,-1e-06,0.00018896,2]
[327115057,1715830241404,-18278.422348,0.00018896,2]
[327115064,1715830244658,-411.01891536,0.00018896,2]
[327115081,1715830432762,-999.84733995,0.000188,2]
[327115082,1715830434488,601.64,0.00019178,4]
[327115083,1715830434801,601.64,0.00019452,4]
[327115084,1715830435070,601.64,0.00019726,4]
[327115085,1715830435351,601.64,0.0002,4]
[327115086,1715830435616,601.64,0.00020273,4]
[327115087,1715830435907,601.64,0.00020547,4]
[327115088,1715830437869,601.64,0.00020821,4]
[327115089,1715830460176,416.87621729,0.00018616,2]
[327115090,1715830527582,315.1407731,0.00018229,2]
[327115091,1715830542022,418.13566966,0.00018085,2]
[327115092,1715830614938,3099.78642732,0.00021,5]
[327115094,1715830669544,2113.77180441,0.00017985,2]
[327115095,1715830764723,233.150189,0.00017615,2]
[327115097,1715830871455,1056.52,0.00021,3]
[327115099,1715830950496,161.81396766,0.00017985,2]
[327115100,1715830951242,2355.43669319,0.00017985,2]
[327115101,1715831047271,24900.0,0.00017275,2]
[327115102,1715831049450,898.76017743,0.00017985,2]
[327115103,1715831157574,-195.02204157,0.00018083,2]
[327115104,1715831157593,-434.77518099,0.00018083,2]
[327115105,1715831157613,-464.14167136,0.00018084,2]
[327115106,1715831237112,-190.34856349,0.00018083,2]
[327115107,1715831237136,-220.05119166,0.00018084,2]
[327115108,1715831253123,-460.98401074,0.00018084,2]
[327115109,1715831263202,259.984353,0.00017838,2]
[327115117,1715831323347,1662.07679256,0.00021,3]
[327115118,1715831337962,500.0,0.00019178,4]
[327115119,1715831338234,500.0,0.00019452,4]
[327115120,1715831338791,500.0,0.00019726,4]
[327115121,1715831339058,500.0,0.0002,4]
[327115122,1715831339344,500.0,0.00020273,4]
[327115123,1715831339638,500.0,0.00020547,4]
[327115124,1715831340267,500.0,0.00020821,4]
[327115127,1715831362104,-691.85624881,0.00018083,2]
[327115128,1715831362125,-5999.82523365,0.00018084,2]
[327115130,1715831366134,-123191.55867571,0.00018084,2]
[327115131,1715831366153,-165.40983362,0.00018204,2]
[327115133,1715831366173,-625.12740841,0.00018304,2]
[327115135,1715831368113,-2305.62936172,0.00018304,2]
[327115136,1715831368135,-3886.72449001,0.00018496,2]
[327115137,1715831368155,-416.87621729,0.00018629,2]
[327115138,1715831368176,-165.40983361,0.00018641,2]
[327115139,1715831368196,-291.0359,0.00018778,2]
[327115140,1715831377080,1662.07679256,0.00021,3]
[327115143,1715831431396,1667.19860482,0.00021,3]
[327115162,1715831432613,-476.82,0.00018899,2]
[327115198,1715831438766,-13507.61742045,0.00018899,2]
[327115200,1715831438776,-204.1985749,0.000189,2]
[327115202,1715831438785,-1362.72114019,0.000189,2]
[327115204,1715831438795,-291.0359,0.000189,2]
[327115206,1715831438804,-291.0359,0.000189,2]
[327115208,1715831438813,-291.0359,0.000189,2]
[327115210,1715831438823,-165.40983361,0.00019078,2]
[327115212,1715831438832,-291.0359,0.000191,2]
[327115215,1715831438841,-291.0359,0.000191,2]
[327115218,1715831438850,-5804.51837156,0.00019177,2]
[327115355,1715831441157,-99103.3846095,0.00019177,2]
[327115438,1715831447030,-6485.40873709,0.00019177,2]
[327115439,1715831463832,266.53593753,0.00019176,7]
[327115440,1715831502815,226.1869605,0.00018152,2]
[327115441,1715831545598,158.45914912,9.999e-05,2]
[327115442,1715831620672,6012.21438497,0.000265,120]
[327115443,1715831711739,1495.91634512,9.999e-05,2]
[327115444,1715831744156,259.984353,0.00017878,2]
[327115447,1715831992877,24900.0,0.00017896,2]
[327115448,1715832243909,500.0,0.00019178,4]
[327115449,1715832244200,500.0,0.00019452,4]
[327115450,1715832244519,500.0,0.00019726,4]
[327115451,1715832244804,500.0,0.0002,4]
[327115452,1715832245103,500.0,0.00020273,4]
[327115453,1715832245690,500.0,0.00020547,4]
[327115454,1715832245994,500.0,0.00020821,4]
[327115455,1715832253267,154.82968734,9.999e-05,2]
[327115456,1715832337118,-1896.9888826,0.00018087,2]
[327115457,1715832337138,-198.6300311,0.0001812,2]
[327115458,1715832337160,-108.438084,0.000189,2]
[327115463,1715832433530,-170.852222,0.000189,2]
[327115464,1715832555143,-3994.15163685,0.00018046,2]
[327115465,1715832555171,-432.9432294,0.00018047,2]
[327115466,1715832555192,-156.25142505,0.000188,2]
[327115467,1715832612944,155.09025572,0.000188,2]
[327115468,1715832618923,104.80304198,0.000188,2]
[327115512,1715832631811,-305.84891193,0.000188,2]
[327115805,1715832640063,-12022.89660036,0.000188,2]
[327115817,1715832642959,-3708.5168566,0.000188,2]
[327115818,1715832642969,-154.82968734,0.000189,2]
[327115819,1715832642978,-3093.08656028,0.00018978,2]
[327115820,1715832642987,-167.11623825,0.00018999,2]
[327115821,1715832642996,-416.87621729,0.00019039,2]
[327115822,1715832643006,-980.29334132,0.0001907,2]
[327115823,1715832643015,-167.11623825,0.00019076,2]
[327115824,1715832643025,-116943.78865914,0.00019077,2]